[Event "ITT 1st Parada Jamundi 2022"]
[Site "Jamundi Valle"]
[Date "2022.12.08"]
[Round "5.13"]
[White "Gonzalez Velasco, Leandro"]
[Black "Pazos Gambarrotti, Plinio"]
[Result "0-1"]
[ECO "B60"]
[WhiteElo "1915"]
[BlackElo "2083"]
[Annotator "TA"]
[PlyCount "136"]
[EventDate "2022.12.05"]
[EventType "swiss"]
[EventCountry "COL"]
[SourceTitle "playchess.com"]
[Source "ChessBase"]
[SourceQuality "1"]
[TimeControl "5400+30"]

{[%evp 15,136,44,40,38,47,37,38,45,44,23,44,22,73,43,57,43,123,7,23,30,19,29,33,12,13,-32,0,0,17,18,35,24,1,14,14,28,34,39,43,29,257,270,261,268,314,283,405,-57,-50,-66,0,0,0,-230,0,-369,-375,-366,-374,-375,-279,-275,-259,-274,-271,-252,-250,-278,-277,-316,-258,-411,-387,-412,-268,-708,-656,-693,-660,-1164,-1080,-12831,-12831,-12841,-12837,-12838,-12838,-12837,-1072,-1362,-1237,-12837,-1884,-12839,-12839,-12841,-12842,-12845,-12840,-12840,-12841,-12841,-12841,-12845,-12845,-12845,-12846,-12847,-12844,-12845,-12845,-12847,-12848,-12848,-12849,-12849,-12847,-12850,-12850,-12850,-27999,-27999,-27999]} 1. e4 {[%emt 0:01:27]} c5 {[%emt 0:00:12]} 2. Nf3 {[%emt 0:00:12]} Nc6 {[%emt 0:00:02]} 3. d4 {[%emt 0:00:15]} cxd4 {[%emt 0:00:02]} 4. Nxd4 {[%emt 0:00:11]} Nf6 {[%emt 0:00:02]} 5. Nc3 {[%emt 0:00:15]} d6 {[%emt 0:00:02]} 6. Bg5 {[%emt 0:00:23]} Qb6 {[%emt 0:00:05]} 7. Nb3 {[%emt 0:00:12]} e6 {[%emt 0:00:02]} 8. Bxf6 {[%emt 0:00:43]} gxf6 {[%emt 0:00:02]} 9. a4 {[%emt 0:00:53][%cal Ba2a4,Ba4a5][%mdl 32] B60: Sicilian: Richter-Rauzer: Unusual Black 6th moves and 6...Bd7 without 7 Qd2.} a6 {[%emt 0:00:07]} 10. a5 {[%emt 0:02:32]} Qc7 {[%emt 0:00:05]} 11. Qf3 {[%emt 0:01:26] White is slightly better.} Be7 {[%emt 0:00:39]} 12. Be2 {[%emt 0:02:04] [#]} Bd7 $146 {[%emt 0:01:06]} ({Predecessor:} 12... h5 13. O-O Bd7 14. Qe3 Bf8 15. Na4 O-O-O 16. Nb6+ Kb8 17. Nxd7+ Rxd7 18. Ra4 h4 {½-½ (55) Nedoma,P (2269)-Pravec,L (2350) ICCF email 2004}) 13. Qh5 {[%emt 0:07:51]} Ne5 {[%emt 0:01:04]} (13... O-O-O $11 {remains equal.}) 14. O-O-O {[%emt 0:04:08]} O-O-O {[%emt 0:01:07]} 15. f4 {[%emt 0:00:48]} Ng6 {[%emt 0:00:09]} ({Black should try} 15... Nc6 $1 $14) 16. Qf3 {[%emt 0:06:22]} (16. g3 $16) 16... Bc6 {[%emt 0:00:21]} 17. Qe3 {[%emt 0:11:09]} h5 {[%emt 0:01:34]} 18. Rhf1 {[%emt 0:08:31]} Kb8 {[%emt 0:00:35]} 19. g3 {[%emt 0:02:57]} h4 {[%emt 0:01:49]} 20. g4 {[%emt 0:03:55]} Rc8 {[%emt 0:01:09]} (20... Bf8 $5 {[%cal Rg6f4]}) 21. Kb1 {[%emt 0:01:23]} Bf8 {[%emt 0:01:00]} 22. f5 {[%emt 0:10:44]} Bh6 {[%emt 0:01:19]} 23. Qd4 {[%emt 0:02:22]} (23. Qf2 $5 {[%cal Rf5g6]} Nf4 24. Bf3 $11) 23... Nf4 {[%emt 0:00:26]} 24. Bf3 {[%emt 0:03:40]} (24. Qxd6 Nxe2 25. Nxe2 Bxe4 $15) 24... d5 {[%emt 0:04:57]} 25. exd5 {[%emt 0:12:06]} (25. Qxf6 dxe4 26. g5 Bxg5 27. Qxg5 exf3 $17) 25... Nxd5 {[%emt 0:00:26]} 26. Bxd5 {[%emt 0:00:34]} Bxd5 {[%emt 0:00:03] A strong pair of Bishops.} 27. Qxf6 {[%emt 0:12:31] Hoping for g5.} Qxh2 $2 {[%emt 0:00:50]} (27... Be3 $1 $11) 28. g5 $18 {[%emt 0:01:18]} Bxg5 {[%emt 0:00:27]} 29. Qxg5 {[%emt 0:00:12]} h3 {[%emt 0:00:02]} 30. Rd2 {[%emt 0:01:23]} Bg2 {[%emt 0:00:21]} (30... Qe5 {was called for.}) 31. Nd4 $2 {[%emt 0:02:32]} (31. fxe6 $18 Rhg8 32. Qe7) 31... Qe5 $15 {[%emt 0:01:30]} 32. Rfd1 {[%emt 0:00:51]} Rcg8 {[%emt 0:00:22]} (32... Rhg8 $1 $15 33. Qh5 h2) 33. Qe7 $11 {[%emt 0:00:27][%csl LRe6,LRf7] aiming for Qb4.} h2 {[%emt 0:00:12]} 34. fxe6 $2 {[%emt 0:00:41] White is now going downhill.} (34. Re2 $2 Qxa5 35. fxe6 (35. Qxf7 $2 h1=Q $19) 35... fxe6 36. Qd6+ Qc7 37. Qxc7+ (37. Qxe6 $2 h1=Q $19) (37. Nxe6 $2 Qxd6 38. Rxd6 h1=Q+ $19) 37... Kxc7 $19) (34. Rxg2 $1 $11 Rxg2 35. Nc6+ (35. Qb4 $2 Qc7 $19) 35... bxc6 36. Rd8+ (36. Qxf7 $2 Rg1 $19) 36... Rxd8 37. Qxd8+ Kb7 38. Qb6+ Kc8 39. Qxc6+ Kd8 40. Qa8+ (40. Qxg2 $2 Qe1+ 41. Ka2 h1=Q $19) 40... Kc7 41. Qa7+ Kd8 42. Qa8+ (42. Qxa6 h1=Q+ 43. Ka2 Rxc2 44. Qd3+ Qhd5+ 45. Qxd5+ exd5 46. Kb3 Rg2 47. Na4 Qxf5 48. Kb4 Rg4+ 49. Kb3 Qd3+ 50. Nc3 Rg1 51. Ka3 Ra1+ 52. Kb3 Kc7 53. a6 Rxa6 54. Kb4 Qc4#) 42... Ke7 43. f6+ (43. Qxg2 $2 Qe1+ 44. Ka2 h1=Q $19) 43... Kxf6 44. Qf3+ (44. Qxg2 $2 Qe1+ 45. Ka2 h1=Q $19) 44... Ke7 45. Qb7+ (45. Qxg2 $2 Qe1+ 46. Ka2 h1=Q $19) 45... Kf8 46. Qa8+ (46. Qxg2 $2 Qe1+ 47. Ka2 h1=Q $19) 46... Qb8 47. Qxg2 (47. Qxb8+ $2 Kg7 $17)) 34... fxe6 $2 {[%emt 0:00:10] Really sharp!} (34... h1=B $2 35. Re2 Be4 36. Qb4 $18) (34... h1=R 35. Qxf7 Rf8 36. Qg6 $11) (34... h1=Q $19 35. Rxh1 Rxh1+ 36. Ka2 Qxa5+ 37. Qa3 Bd5+ 38. Nxd5 Qxd5+ 39. Qb3 fxe6 40. Qxd5 exd5) 35. Ka2 $2 {[%emt 0:00:30][%mdl 8192]} (35. Re2 $2 Qxa5 36. Nb3 (36. Rxe6 $2 h1=Q $19) 36... Qc7 37. Qxe6 {[#]} (37. Rxe6 $2 Qxe7 38. Rxe7 Bf3 $19) (37. Qxc7+ $2 Kxc7 38. Nd4 h1=Q $19) 37... Rd8 $1 $19) (35. Rxg2 $1 $11 {and White stays safe.} Rxg2 36. Nc6+ (36. Nf3 $2 Qf5 $19) 36... bxc6 37. Rd8+ Rxd8 38. Qxd8+ Kb7 39. Qb6+ Ka8 40. Qxc6+ (40. Qxa6+ Kb8 $11) 40... Ka7 41. Qb6+ Ka8 42. Qc6+ (42. Qxa6+ Kb8 $11) 42... Ka7 43. Qb6+ Ka8 44. Qc6+ (44. Qxa6+ Kb8 $11)) 35... Qxa5+ $19 {[%emt 0:00:45]} (35... h1=B 36. Nb3 $14 (36. Nxe6 Bf3 $11)) (35... h1=Q $2 36. Rxh1 Qxa5+ 37. Qa3 Qxa3+ 38. Kxa3 $19) (35... h1=R $2 36. Nb3 $19) 36. Qa3 {[%emt 0:00:22]} Qxa3+ {[%emt 0:00:04]} ({Don't take} 36... h1=Q 37. Qxa5 Bd5+ 38. Nb3 $18) 37. Kxa3 {[%emt 0:00:04]} h1=Q {[%emt 0:00:16]} ({Stronger than} 37... h1=B 38. Nxe6 Bf3 39. Rf1 $11) 38. Rxh1 {[%emt 0:00:04]} Bxh1 {[%emt 0:00:21]} (38... Rxh1 $2 {perishes.} 39. Nxe6 Rh6 40. Nf4 $19) 39. Nxe6 {[%emt 0:00:06]} Rg2 {[%emt 0:00:18]} 40. Rxg2 {[%emt 0:00:35]} Bxg2 {[%emt 0:00:01][%mdl 4096] Endgame KRB-KNN} 41. Nf4 {[%emt 0:00:41]} Bc6 {[%emt 0:00:14]} 42. Nd3 {[%emt 0:00:46]} Be8 {[%emt 0:00:30] Strongly threatening ...Bg6.} 43. Ne5 {[%emt 0:01:20]} (43. Ne2 {is a better defense.}) 43... Rh5 {[%emt 0:00:23]} 44. Ng4 {[%emt 0:00:26]} Rg5 {[%emt 0:00:38]} 45. Nf2 {[%emt 0:00:35]} (45. Ne3) 45... Rg2 {[%emt 0:00:18]} 46. Nfe4 {[%emt 0:00:31]} Rxc2 {[%emt 0:00:18]} 47. Kb3 {[%emt 0:00:14]} Rg2 {[%emt 0:00:08] White must now prevent ...Bf7+.} 48. Nd6 {[%emt 0:00:33] Prevents Bf7+.} Bg6 {[%emt 0:00:16]} 49. Ka3 {[%emt 0:00:38]} Kc7 {[%emt 0:00:21]} 50. Nc4 {[%emt 0:00:13]} Bf7 {[%emt 0:00:47]} 51. Ne5 {[%emt 0:00:18]} Be6 {[%emt 0:00:21]} (51... Bg8 $142 52. Nd3 b5) 52. Nd3 {[%emt 0:00:56]} Bg8 {[%emt 0:00:23]} 53. Ne1 {[%emt 0:00:38] Inhibits b5.} Rg1 {[%emt 0:00:46]} (53... Rg4 $142 54. b3 Rg3) 54. Nc2 {[%emt 0:00:15]} b5 {[%emt 0:00:31]} 55. Nd4 {[%emt 0:00:45]} Kb6 {[%emt 0:00:12]} 56. b4 {[%emt 0:00:30]} Rg3 {[%emt 0:00:17]} 57. Kb2 {[%emt 0:00:05]} Rg4 {[%emt 0:00:15]} 58. Nc2 {[%emt 0:00:34]} Kc6 {[%emt 0:00:51]} 59. Ne2 {[%emt 0:00:41]} Bh7 {[%emt 0:00:48]} 60. Ncd4+ {[%emt 0:00:40]} Kd5 {[%emt 0:00:18]} 61. Kc3 {[%emt 0:00:15]} Rh4 {[%emt 0:00:35]} 62. Nf3 {[%emt 0:00:46]} Re4 {[%emt 0:00:46]} 63. Nfd4 {[%emt 0:00:29]} Re3+ {[%emt 0:00:15]} 64. Kb2 {[%emt 0:00:06]} Kc4 {[%emt 0:00:14]} 65. Kc1 {[%emt 0:00:54]} Bd3 {[%emt 0:00:25]} 66. Kd2 {[%emt 0:00:24] [#]} Rxe2+ $1 {[%emt 0:00:03]} 67. Nxe2 {[%emt 0:00:08]} Bxe2 {[%emt 0:00:05]} 68. Kxe2 {[%emt 0:00:08]} Kxb4 {[%emt 0:00:01] Weighted Error Value: White=0.76/Black=0.46} 0-1

[Event "ITT 1st Parada Jamundi 2022"]
[Site "Jamundi Valle"]
[Date "2022.12.08"]
[Round "5.14"]
[White "Renteria, Rolando"]
[Black "Rodriguez, Juan Gabriel"]
[Result "1-0"]
[ECO "B50"]
[WhiteElo "2046"]
[BlackElo "1665"]
[Annotator "TA"]
[PlyCount "51"]
[EventDate "2022.12.05"]
[EventType "swiss"]
[EventCountry "COL"]
[SourceTitle "playchess.com"]
[Source "ChessBase"]
[SourceQuality "1"]
[TimeControl "5400+30"]

{[%evp 11,51,-12,10,28,24,9,22,22,50,19,52,50,74,69,81,31,123,118,118,116,208,213,202,202,280,266,267,257,237,238,331,338,330,324,457,462,793,712,1308,1042,1267,1158]} 1. Nf3 {[%emt 0:00:30]} c5 {[%emt 0:07:46]} 2. g3 {[%emt 0:00:00]} Nc6 {[%emt 0:00:14]} 3. Bg2 {[%emt 0:00:03]} g6 {[%emt 0:00:11]} 4. O-O {[%emt 0:00:09]} Bg7 {[%emt 0:00:08]} 5. e4 {[%emt 0:00:26]} d6 {[%emt 0:00:28]} 6. c3 {[%emt 0:00:23][%cal Bc2c3,Bc3d4,Bd4d5][%mdl 32]} Nf6 {[%emt 0:00:53]} 7. d4 {[%emt 0:00:55] B50: Sicilian: 2...d6, Miscellaneous.} cxd4 {[%emt 0:00:27]} (7... Nxe4 $2 8. d5 $18) 8. cxd4 {[%emt 0:00:04]} O-O {[%emt 1:24:23]} (8... Nxe4 $2 9. d5 $16) 9. d5 {[%emt 1:32:30] The position is equal.} Na5 {[%emt 0:00:00]} 10. Nc3 {[%emt 0:00:00] [#]} b6 $146 {[%emt 0:00:00]} ({Predecessor:} 10... Bd7 11. Be3 b5 12. b4 Nc4 13. Bd4 Qc7 14. Qe2 a5 15. Rab1 Na3 16. Rb3 axb4 17. Rxb4 {0-1 (40) Amrehn,F-Risch,H GER corr 1998}) 11. Qe2 {[%emt 0:00:00]} Ng4 {[%emt 0:00:00]} 12. h3 {[%emt 0:00:00]} Ne5 {[%emt 0:00:00] [#]} 13. Nxe5 {[%emt 0:00:00]} (13. Nd4 $1 $16) 13... Bxe5 {[%emt 0:00:00]} (13... dxe5 $14 14. h4 Bd7) 14. Bh6 $16 {[%emt 0:00:00]} Re8 {[%emt 0:00:00]} 15. Rac1 {[%emt 0:00:00]} a6 {[%emt 0:00:00]} (15... b5 $16) 16. b4 $18 {[%emt 0:00:00]} Nb7 {[%emt 0:00:00]} 17. f4 {[%emt 0:00:00]} Bh8 {[%emt 0:04:30]} 18. e5 {[%emt 0:04:30]} a5 {[%emt 0:00:00]} 19. a3 {[%emt 0:00:00][%cal Ba2a3,Ba3b4][%mdl 32]} axb4 {[%emt 0:00:00]} 20. axb4 {[%emt 0:00:00]} Bg7 {[%emt 0:00:00]} 21. Bxg7 {[%emt 0:00:00]} Kxg7 {[%emt 0:00:00]} 22. e6 {[%emt 0:00:00]} Rf8 {[%emt 0:00:00]} (22... f6 $142 23. Nb5 Nc5 24. bxc5 bxc5) 23. f5 {[%emt 0:00:00][%cal Bf4f5,Bf5e6][%mdl 32] White is clearly winning.} fxe6 {[%emt 0:00:00]} (23... f6 $142 24. fxg6 hxg6) 24. fxe6 {[%emt 0:00:00]} Rf6 {[%emt 0:00:00]} 25. Ne4 {[%emt 0:00:00]} Rxf1+ {[%emt 0:00:00]} 26. Rxf1 {[%emt 0:00:00] Weighted Error Value: White=0.06 (flawless) /Black=0.45} 1-0

[Event "ITT 1st Parada Jamundi 2022"]
[Site "Jamundi Valle"]
[Date "2022.12.08"]
[Round "5.15"]
[White "Palacios Gordillo, Camila Estefania"]
[Black "Vacca, Leonardo"]
[Result "0-1"]
[ECO "A70"]
[WhiteElo "1625"]
[BlackElo "2041"]
[Annotator "TA"]
[PlyCount "123"]
[EventDate "2022.12.05"]
[EventType "swiss"]
[EventCountry "COL"]
[SourceTitle "playchess.com"]
[Source "ChessBase"]
[SourceQuality "1"]
[TimeControl "5400+30"]

{[%evp 21,123,20,49,29,19,1,6,16,23,0,31,28,30,27,31,27,35,18,25,20,43,38,56,57,43,47,66,81,85,64,87,87,93,94,110,63,63,63,63,63,63,63,63,63,63,63,63,5,5,5,6,0,0,0,0,0,0,0,0,0,83,91,87,30,570,533,433,0,35,29,488,385,585,0,62,0,0,0,0,0,0,0,0,0,0,0,0,-159,-161,-135,-77,-179,-160,-117,-124,-449,-414,-902,-993,-741,-568,-410,-345,-506]} 1. d4 {[%emt 0:03:28]} c5 {[%emt 0:15:39]} 2. d5 {[%emt 0:00:23]} Nf6 {[%emt 0:00:33]} 3. c4 {[%emt 0:00:36]} e6 {[%emt 0:00:14]} 4. Nc3 {[%emt 0:03:05]} exd5 {[%emt 0:01:02]} 5. cxd5 {[%emt 0:01:27]} d6 {[%emt 0:00:13]} 6. e4 {[%emt 0:01:22]} g6 {[%emt 0:01:57]} 7. Bd3 {[%emt 0:02:22]} Bg7 {[%emt 0:02:26]} 8. Nf3 {[%emt 0:05:27]} O-O {[%emt 0:01:13]} 9. O-O {[%emt 0:01:00]} Bg4 {[%emt 0:00:26]} 10. h3 {[%emt 0:01:18]} Bxf3 {[%emt 0:00:18]} 11. Qxf3 {[%emt 0:02:56]} Nbd7 {[%emt 0:01:04]} 12. Bf4 {[%emt 0:02:14] A70: Modern Benoni: 6 e4 g6 7 Nf3.} Qe7 {[%emt 0:01:35]} 13. Rfe1 {[%emt 0:11:44]} Nh5 {[%emt 0:03:00]} 14. Bh2 {[%emt 0:02:48] The position is equal.} Ne5 {[%emt 0:00:26] Prevents g4.} 15. Qe2 {[%emt 0:02:00] [#]} Nxd3 $146 {[%emt 0:02:13]} ({Predecessor:} 15... a6 16. a4 Qg5 17. Kh1 Nf4 18. Bxf4 Qxf4 19. g3 Qf3+ 20. Qxf3 Nxf3 21. Red1 Nd4 {0-1 (40) Aguilera,D (1699)-Savoretti,E (1922) Rosario 2018}) 16. Qxd3 {[%emt 0:00:08]} Be5 {[%emt 0:00:40]} 17. Bxe5 {[%emt 0:03:45]} Qxe5 {[%emt 0:01:26]} 18. g3 {[%emt 0:03:03]} a6 {[%emt 0:08:41]} 19. a4 {[%emt 0:03:10]} Rae8 {[%emt 0:00:58]} 20. Re3 {[%emt 0:10:19]} g5 {[%emt 0:03:10]} 21. Qe2 {[%emt 0:03:18]} Ng7 {[%emt 0:05:04]} 22. Rf1 {[%emt 0:04:57]} f5 {[%emt 0:04:37]} 23. f4 {[%emt 0:02:35]} Qd4 {[%emt 0:01:54]} 24. Rd1 {[%emt 0:02:02]} ({Don't play} 24. fxg5 f4 25. Rxf4 (25. gxf4 Nf5 $17) 25... Nf5 $1 26. exf5 Qxe3+ 27. Qxe3 Rxe3 $11) 24... Qf6 {[%emt 0:01:11]} 25. e5 {[%emt 0:02:01]} Qh6 {[%emt 0:01:49][%csl LRf4,LRh3]} 26. fxg5 {[%emt 0:09:52]} Qxg5 {[%emt 0:01:46]} 27. e6 {[%emt 0:02:10]} f4 {[%emt 0:00:21]} 28. Rf3 {[%emt 0:05:06]} (28. Red3 $1 $16) 28... Nf5 $14 {[%emt 0:03:33]} 29. Ne4 $1 {[%emt 0:03:54]} (29. Rxf4 $2 {perishes.} Qxg3+ 30. Qg2 Qxg2+ 31. Kxg2 Ne3+ 32. Kg3 Rxf4 33. Kxf4 Nxd1 34. Nxd1 Kg7 $19) 29... Qg7 {[%emt 0:00:22]} 30. Rxf4 {[%emt 0:03:17] Strongly threatening Rg4.} (30. Rc3 {is interesting.} Nxg3 31. Nxg3 fxg3 32. Rc4) 30... Nxg3 {[%emt 0:08:20]} 31. Rxf8+ {[%emt 0:00:33]} Rxf8 {[%emt 0:00:41]} 32. Nxg3 {[%emt 0:00:09]} Qxg3+ {[%emt 0:00:12][%mdl 4096] Endgame KQR-KQR} 33. Qg2 {[%emt 0:00:04]} Rf3 {[%emt 0:00:42]} 34. Qxg3+ {[%emt 0:00:33]} ({White should play} 34. Rd2 $14) 34... Rxg3+ {[%emt 0:00:07] KR-KR} 35. Kh2 {[%emt 0:00:11]} Rb3 {[%emt 0:00:07]} 36. Rd2 {[%emt 0:00:30]} Kf8 {[%emt 0:00:20]} 37. Rf2+ {[%emt 0:01:59]} Ke8 {[%emt 0:00:17]} 38. Rg2 {[%emt 0:01:34]} h5 {[%emt 0:02:02]} 39. Rg8+ {[%emt 0:01:40]} Ke7 {[%emt 0:00:09]} 40. Rg7+ {[%emt 0:00:39]} Kf6 {[%emt 0:00:36]} (40... Ke8 $11 {remains equal.}) 41. Rf7+ $16 {[%emt 0:00:14]} Kg6 {[%emt 0:00:01]} 42. Rf2 {[%emt 0:00:20]} (42. Rd7 $1 $16 {[%cal Rd7d6]}) 42... Re3 $2 {[%emt 0:00:14][%mdl 8192]} (42... Kg7 $1 $11 {and Black stays safe.}) 43. a5 $1 $18 {[%emt 0:00:41]} Re5 {[%emt 0:00:23]} 44. Rd2 {[%emt 0:01:04]} (44. Rf8 $1 $18 h4 45. Kg2) 44... h4 {[%emt 0:02:06]} 45. Kg2 {[%emt 0:00:29] Kf3 is the strong threat.} Re3 {[%emt 0:00:21][%mdl 8192]} (45... Rg5+ $11 46. Kf3 Kf6) 46. Rf2 {[%emt 0:00:11]} Re5 {[%emt 0:03:59] [#]} (46... Rg3+ $142 47. Kf1 Rb3) 47. Rd2 $2 {[%emt 0:00:04]} ({White has to play} 47. Rf8 $1 $18 Kg5 48. Kf3) 47... Rg5+ {[%emt 0:00:44]} (47... Re3 $11) 48. Kh2 {[%emt 0:00:58]} ({White should try} 48. Kf3 $14 Kf6 49. Kf4) 48... Kf6 {[%emt 0:00:36]} 49. Rf2+ {[%emt 0:00:42]} Ke7 {[%emt 0:00:02]} 50. Rd2 {[%emt 0:00:36]} Rg3 {[%emt 0:00:33]} 51. Rf2 {[%emt 0:00:10]} Rd3 {[%emt 0:00:58]} 52. Rf7+ {[%emt 0:00:51]} Ke8 {[%emt 0:00:12]} 53. Rxb7 {[%emt 0:00:21]} Rxd5 {[%emt 0:00:09]} 54. Rb6 $2 {[%emt 0:00:31]} ({Better is} 54. Kg2 $11) 54... Ke7 $17 {[%emt 0:00:13]} 55. Kg2 {[%emt 0:00:38]} Rd3 {[%emt 0:00:53]} (55... Kxe6 $142 {And now ...Rd4 would win.} 56. Kf3 Rd2) 56. Rxa6 {[%emt 0:00:19] [#]} (56. b4 $17) 56... Rd2+ $1 $19 {[%emt 0:01:34]} ({Stronger than} 56... Kxe6 57. Rb6 $11) 57. Kf3 {[%emt 0:00:13] Threatens to win with Ra8.} Rxb2 {[%emt 0:00:06] Black is more active.} 58. Rb6 $2 {[%emt 0:00:57][%mdl 8192]} (58. Kg4 $17 {is more resistant.}) 58... Ra2 {[%emt 0:00:08]} 59. a6 {[%emt 0:00:03]} (59. Ra6 $142 Kxe6 60. Ra8) 59... Kxe6 {[%emt 0:00:08]} 60. Ke4 {[%emt 0:00:56]} Ra4+ {[%emt 0:00:39]} 61. Kd3 {[%emt 0:00:31]} Kd5 {[%emt 0:00:10]} 62. Ke3 {[%emt 0:01:02] What a bad dream for White.   Weighted Error Value: White=0.51/Black=0.38} (62. Kc3 {is the only way for White.}) 0-1

[Event "ITT 1st Parada Jamundi 2022"]
[Site "Jamundi Valle"]
[Date "2022.12.08"]
[Round "5.16"]
[White "Simancas Maradei, Miguel Alejand"]
[Black "Cajamarca Gordillo, Sebastian Alejandro"]
[Result "1-0"]
[ECO "D35"]
[WhiteElo "2027"]
[BlackElo "1618"]
[Annotator "TA"]
[PlyCount "95"]
[EventDate "2022.12.05"]
[EventType "swiss"]
[EventCountry "COL"]
[SourceTitle "playchess.com"]
[Source "ChessBase"]
[SourceQuality "1"]
[TimeControl "5400+30"]

{[%evp 17,95,-2,0,-10,4,0,-6,-11,0,0,0,0,0,0,0,-16,0,0,0,-20,-15,-16,0,-23,60,62,60,64,57,69,91,91,91,91,91,90,106,91,93,92,104,60,97,77,147,149,139,166,162,139,156,148,161,155,143,137,216,216,221,222,212,215,253,253,252,252,377,364,533,576,590,579,858,836,2651,2534,1967,1926,29998,29999]} 1. d4 {[%emt 0:01:21]} d5 {[%emt 0:04:15]} 2. c4 {[%emt 0:00:06]} e6 {[%emt 0:01:53]} 3. Nf3 {[%emt 0:01:05]} Be7 {[%emt 0:01:59]} 4. Nc3 {[%emt 0:00:28]} Nf6 {[%emt 0:04:10]} 5. cxd5 {[%emt 0:03:58]} exd5 {[%emt 0:00:40]} 6. Bf4 {[%emt 0:00:12]} O-O {[%emt 0:05:14]} 7. e3 {[%emt 0:01:43]} Bf5 {[%emt 0:15:05]} 8. Bd3 {[%emt 0:00:38]} Bxd3 {[%emt 0:08:29]} 9. Qxd3 {[%emt 0:00:30]} c6 {[%emt 0:00:30]} 10. O-O {[%emt 0:00:30] D35: Queen's Gambit Declined: Exchange Variation.} Na6 {[%emt 0:00:30][%cal Bb8a6,Ba6c7,Bc7d5][%mdl 32] [#]} 11. Rad1 $146 {[%emt 0:18:03]} ({Predecessor:} 11. h3 Nc7 12. Bh2 a6 13. Ne5 Nb5 14. Na4 Nd6 15. b3 Nfe4 16. f3 Ng5 17. Qd2 Ne6 {1-0 (53) Vertetics,A (2416)-Haria,R (2382) Chess.com INT 2017}) 11... Nh5 {[%emt 0:23:50]} 12. Bg3 {[%emt 0:11:34] The position is equal.} Nxg3 {[%emt 0:05:02]} (12... Re8 {feels hotter.} 13. Ne5 Qc8 14. Rfe1 f6) 13. hxg3 {[%emt 0:00:02]} Bf6 {[%emt 0:02:47]} 14. a3 {[%emt 0:07:16]} Nc7 {[%emt 0:00:38]} 15. b4 {[%emt 0:00:47]} Qd7 {[%emt 0:02:40]} 16. e4 {[%emt 0:12:21]} dxe4 {[%emt 0:03:02]} 17. Nxe4 {[%emt 0:00:28]} Nd5 {[%emt 0:01:17]} 18. Nxf6+ {[%emt 0:03:52]} Nxf6 {[%emt 0:01:19]} 19. Ne5 {[%emt 0:00:07]} Qd5 {[%emt 0:01:52]} 20. Rfe1 {[%emt 0:00:27]} a5 {[%emt 0:02:17]} (20... h5 $11) 21. Nc4 $1 $14 {[%emt 0:04:30] Hoping for Nb6.} Qh5 {[%emt 0:10:26]} 22. Re5 {[%emt 0:09:08]} ({Much weaker is} 22. bxa5 Ng4 $11) 22... Qh6 {[%emt 0:00:18] [#] Threatens to win with ...Ng4.} 23. Ne3 {[%emt 0:00:18] Inhibits Ng4. And now Nf5 would win.} Nd5 {[%emt 0:01:16]} 24. Nxd5 {[%emt 0:05:43]} cxd5 {[%emt 0:00:05]} 25. Rxd5 {[%emt 0:00:02]} axb4 {[%emt 0:00:11]} 26. axb4 {[%emt 0:00:14]} Qe6 {[%emt 0:01:05]} 27. Re5 {[%emt 0:00:24]} Qd6 {[%emt 0:00:09]} 28. Qb5 {[%emt 0:01:27]} b6 {[%emt 0:02:20]} 29. Rd5 {[%emt 0:02:02]} Qh6 {[%emt 0:00:53]} 30. Qd7 {[%emt 0:01:43]} Qf6 {[%emt 0:00:46]} (30... Qg6 $142) 31. Rd6 $16 {[%emt 0:01:25]} Qg5 {[%emt 0:00:26]} 32. Rxb6 {[%emt 0:01:35] White is more active.} Rad8 {[%emt 0:00:31]} 33. Qc7 {[%emt 0:04:46]} Qg4 {[%emt 0:00:27]} 34. f3 {[%emt 0:00:23]} Qg5 {[%emt 0:00:27]} 35. Qf4 {[%emt 0:00:15] Against Qe3+} Qd5 {[%emt 0:00:21]} 36. Qe4 {[%emt 0:02:31]} Qb3 {[%emt 0:00:44] [#]} (36... Qa2 $16 37. Qd3 Qa7) 37. Qd3 $1 $18 {[%emt 0:00:12]} Qd5 {[%emt 0:00:16]} 38. Rb5 {[%emt 0:00:47]} Qd6 {[%emt 0:00:11]} 39. f4 {[%emt 0:03:17]} ({Don't take} 39. Rh5 $6 g6 40. Rc5 Qxg3 $16) 39... Rb8 {[%emt 0:00:42]} 40. Rxb8 {[%emt 0:00:52]} ({But not} 40. Rh5 $6 Qg6 41. Ra5 Rxb4 $16) 40... Rxb8 {[%emt 0:00:06][%mdl 4096] Endgame KQR-KQR} 41. b5 {[%emt 0:00:39][%cal Bb4b5,Bb5b6][%mdl 32]} Qd5 {[%emt 0:00:31]} (41... Qc7 $142 42. Kh2 Qd6) 42. Rc1 {[%emt 0:00:36]} g6 {[%emt 0:00:17]} (42... h6 $142 43. Rc5 Qe6) 43. Rc5 {[%emt 0:00:02]} Qd6 {[%emt 0:00:15]} 44. Qc4 {[%emt 0:00:21]} Qf8 {[%emt 0:01:10] Against Rc8} 45. Rc7 {[%emt 0:00:28][%cal Ob5b6] Strongly threatening b6!} Ra8 {[%emt 0:00:06]} 46. b6 {[%emt 0:00:44] White threatens b7 and mate.} Ra1+ {[%emt 0:00:06]} 47. Kf2 {[%emt 0:00:07] White wants to mate with b7.} Qa3 {[%emt 0:00:21]} 48. Qxf7+ {[%emt 0:04:31] Weighted Error Value: White=0.06 (flawless) /Black=0.34} 1-0